fUSD/lending_fUSD_20240224
["ID","MTS","AMOUNT","RATE_DAILY","PERIOD"]
[315031406,1708737039784,-150.0,0.00032444,2]
[315031407,1708737039794,-324.0,0.00032551,2]
[315031408,1708737039804,-1000.0,0.00032747,2]
[315031409,1708737039814,-165.93,0.00032865,2]
[315031410,1708737039823,-871.37,0.00032876,2]
[315031411,1708737039833,-161.65,0.00032877,2]
[315031412,1708737039844,-55732.55,0.00032877,2]
[315031413,1708737039854,-150.0,0.00032877,2]
[315031414,1708737039864,-319.14,0.00032877,2]
[315031415,1708737039874,-250.0,0.00032877,2]
[315031416,1708737039884,-155.0,0.00032877,2]
[315031417,1708737039894,-1630.0,0.000329,2]
[315031418,1708737039904,-8000.0,0.000329,2]
[315031419,1708737039914,-157.51738774,0.0003294,7]
[315031420,1708737039924,-150.611562,0.00032957,7]
[315031421,1708737039933,-10053.91627351,0.00032966,2]
[315031422,1708737039943,-2385.89204625,0.00032975,7]
[315031423,1708737039952,-1527.12122368,0.00033,2]
[315031424,1708737039962,-4000.0,0.00033,2]
[315031425,1708737039971,-150.0,0.00033021,2]
[315031426,1708737039981,-168.67,0.00033052,2]
[315031427,1708737039991,-871.37,0.0003315,2]
[315031428,1708737040001,-37616.76929009,0.00033253,2]
[315031429,1708737040010,-13970.36295218,0.00033258,7]
[315031430,1708737040020,-16228.19809091,0.00033258,7]
[315031431,1708737040029,-6561.55301306,0.00033258,7]
[315031432,1708737040039,-6238.24401296,0.00033258,7]
[315031433,1708737040050,-7573.62157304,0.0003329,7]
[315031434,1708737040060,-151.0,0.00033305,120]
[315031435,1708737040071,-1714.80200834,0.00033379,7]
[315031436,1708737040081,-171.48020083,0.00033379,5]
[315031437,1708737040091,-168.75267509,0.00033422,7]
[315031438,1708737040101,-871.37,0.00033424,2]
[315031439,1708737040111,-155.76031538,0.00033436,7]
[315031440,1708737040121,-1126.02,0.000335,2]
[315031441,1708737040131,-1126.02,0.000335,2]
[315031442,1708737040141,-1126.02,0.000335,2]
[315031443,1708737040153,-1126.02,0.000335,2]
[315031444,1708737040163,-1126.02,0.000335,2]
[315031445,1708737040172,-1126.02,0.000335,2]
[315031446,1708737040182,-1126.02,0.000335,2]
[315031447,1708737040192,-1126.02,0.000335,2]
[315031448,1708737040202,-1126.02,0.000335,2]
[315031449,1708737040212,-1126.02,0.000335,2]
[315031450,1708737040221,-1126.02,0.000335,2]
[315031451,1708737040455,-1126.02,0.000335,2]
[315031452,1708737040466,-1126.02,0.000335,2]
[315031453,1708737040476,-1126.02,0.000335,2]
[315031454,1708737040485,-1126.02,0.000335,2]
[315031455,1708737040495,-1126.02,0.000335,2]
[315031456,1708737040505,-1126.02,0.000335,2]
[315031457,1708737040515,-1126.02,0.000335,2]
[315031458,1708737040525,-1126.02,0.000335,2]
[315031459,1708737040534,-1126.02,0.000335,2]
[315031460,1708737040544,-159.39088985,0.0003351,7]
[315031461,1708737040554,-150.0,0.00033598,2]
[315031462,1708737040563,-871.37,0.00033698,2]
[315031463,1708737040574,-150.0,0.00033742,2]
[315031464,1708737040583,-150.611562,0.00033753,7]
[315031465,1708737040595,-1241.82,0.00033794,2]
[315031466,1708737040605,-151.75670975,0.000339,2]
[315031467,1708737040614,-151.75670967,0.000339,2]
[315031468,1708737040624,-151.75670967,0.000339,2]
[315031469,1708737040633,-151.75670967,0.000339,2]
[315031470,1708737040643,-151.75670967,0.000339,2]
[315031471,1708737040654,-151.75670967,0.000339,2]
[315031472,1708737040664,-151.75670967,0.000339,2]
[315031473,1708737040674,-151.75670967,0.000339,2]
[315031474,1708737040683,-151.75670967,0.000339,2]
[315031475,1708737040693,-151.75670967,0.000339,2]
[315031476,1708737040703,-151.75670967,0.000339,2]
[315031477,1708737040713,-151.75670967,0.000339,2]
[315031478,1708737040722,-151.75670967,0.000339,2]
[315031479,1708737040732,-150.1,0.00033913,2]
[315031480,1708737040746,-638.0,0.00033921,2]
[315031481,1708737040756,-871.37,0.00033972,2]
[315031482,1708737040765,-151.0,0.00033985,30]
[315031483,1708737040775,-1000.0,0.00034118,2]
[315031484,1708737040785,-150.0,0.00034175,2]
[315031485,1708737040795,-8000.0,0.000342,2]
[315031486,1708737040805,-871.37,0.00034246,2]
[315031487,1708737040815,-155.0,0.00034247,2]
[315031488,1708737040825,-10053.91627351,0.00034433,2]
[315031489,1708737040834,-1380.77122279,0.0003452,2]
[315031490,1708737040847,-834.103981,0.0003452,2]
[315031491,1708737040856,-985.694774,0.0003452,2]
[315031492,1708737040866,-7923.987819,0.0003452,2]
[315031493,1708737040876,-2856.176615,0.0003452,2]
[315031494,1708737040886,-42423.334072,0.0003452,2]
[315031495,1708737040896,-1446.195836,0.0003452,2]
[315031496,1708737040906,-871.37,0.0003452,2]
[315031497,1708737040916,-8323.21,0.00034521,2]
[315031498,1708737040926,-150.0,0.00034607,2]
[315031499,1708737040937,-19999.99,0.00034649,2]
[315031500,1708737040947,-151.0,0.00034678,7]
[315031501,1708737040957,-150.611562,0.00034743,7]
[315031502,1708737040967,-150.0,0.00034751,2]
[315031505,1708737040977,-1251.155971,0.00034794,2]
[315031506,1708737040987,-1478.542161,0.00034794,2]
[315031507,1708737040999,-11885.981728,0.00034794,2]
[315031508,1708737041009,-4284.264923,0.00034794,2]
[315031509,1708737041021,-63635.001108,0.00034794,2]
[315031510,1708737041030,-2169.293754,0.00034794,2]
[315031511,1708737041040,-871.37,0.00034794,2]
[315031512,1708737041049,-151.75670967,0.00034803,2]
[315031513,1708737041058,-5045.55795349,0.000349,2]
[315031514,1708737041067,-5045.55795348,0.000349,2]
[315031515,1708737041077,-5045.55795348,0.000349,2]
[315031516,1708737041086,-5045.55795348,0.000349,2]
[315031517,1708737041097,-5045.55795348,0.000349,2]
[315031518,1708737041107,-5045.55795348,0.000349,2]
[315031519,1708737041115,-5045.55795348,0.000349,2]
[315031520,1708737041124,-5045.55795348,0.000349,2]
[315031521,1708737041134,-1668.207962,0.00034931,2]
[315031522,1708737041146,-1971.389548,0.00034931,2]
[315031523,1708737041155,-15847.975638,0.00034931,2]
[315031524,1708737041165,-5712.35323,0.00034931,2]
[315031525,1708737041175,-84846.668145,0.00034931,2]
[315031526,1708737041185,-2892.391672,0.00034931,2]
[315031527,1708737041195,-169.46404024,0.0003499,2]
[315031528,1708737041205,-154.20563152,0.00034994,7]
[315031529,1708737041214,-37616.76929009,0.00034996,2]
[315031530,1708737041224,-229.20433756,0.00035,7]
[315031531,1708737041235,-586.90975074,0.00035,4]
[315031532,1708737041245,-1191902.93696373,0.00035,2]
[315031533,1708737041254,-499.999998,0.00035,2]
[315031534,1708737041264,-2146.66845034,0.00035,30]
[315031535,1708737041277,-2217.17203199,0.00035,7]
[315031536,1708737041287,-1023.89729926,0.00035,2]
[315031537,1708737041297,-1518.1266527,0.00035,4]
[315031538,1708737041307,-151.0,0.00035,7]
[315031539,1708737041317,-151.0,0.00035,7]
[315031540,1708737041327,-151.0,0.00035,7]
[315031541,1708737041337,-151.0,0.00035,7]
[315031542,1708737041348,-151.0,0.00035,7]
[315031543,1708737041357,-151.0,0.00035,7]
[315031544,1708737041367,-151.0,0.00035,7]
[315031545,1708737041379,-151.0,0.00035,7]
[315031546,1708737041389,-27823.06511233,0.00035,2]
[315031547,1708737041399,-27823.06511233,0.00035,2]
[315031548,1708737041408,-27823.06511233,0.00035,2]
[315031549,1708737041418,-325.47357949,0.00035,2]
[315031550,1708737041428,-167.66238465,0.00035,2]
[315031551,1708737041438,-325.47357949,0.00035,2]
[315031552,1708737041447,-151.0,0.00035,7]
[315031553,1708737041457,-151.0,0.00035,7]
[315031554,1708737041468,-151.0,0.00035,7]
[315031555,1708737041479,-151.0,0.00035,2]
[315031556,1708737041489,-217.583966,0.00035,7]
[315031557,1708737041499,-217.583966,0.00035,7]
[315031558,1708737041510,-151.0,0.00035,7]
[315031559,1708737041519,-151.0,0.00035,7]
[315031560,1708737041529,-151.0,0.00035,7]
[315031561,1708737041539,-151.0,0.00035,7]
[315031562,1708737041549,-151.0,0.00035,7]
[315031563,1708737041558,-151.0,0.00035,7]
[315031564,1708737041568,-156.350324,0.00035,7]
[315031565,1708737041578,-151.0,0.00035,7]
[315031566,1708737041588,-156.350324,0.00035,7]
[315031567,1708737041600,-151.0,0.00035,7]
[315031568,1708737041609,-151.0,0.00035,7]
[315031569,1708737041619,-151.0,0.00035,7]
[315031570,1708737041629,-151.0,0.00035,7]
[315031571,1708737041640,-151.0,0.00035,7]
[315031572,1708737041650,-151.0,0.00035,7]
[315031573,1708737041659,-151.0,0.00035,7]
[315031574,1708737041669,-151.0,0.00035,7]
[315031575,1708737041680,-254.108488,0.00035,7]
[315031576,1708737041690,-151.0,0.00035,7]
[315031577,1708737041700,-166.546488,0.00035,7]
[315031578,1708737041710,-151.0,0.00035,7]
[315031579,1708737041720,-151.0,0.00035,7]
[315031580,1708737041730,-151.0,0.00035,7]
[315031581,1708737041740,-257.243312,0.00035,7]
[315031582,1708737041750,-2085.259952,0.00035068,2]
[315031583,1708737041760,-2464.236935,0.00035068,2]
[315031584,1708737041770,-19809.969547,0.00035068,2]
[315031585,1708737041780,-7140.441538,0.00035068,2]
[315031586,1708737041790,-106058.335181,0.00035068,2]
[315031587,1708737041799,-3615.489591,0.00035068,2]
[315031588,1708737041809,-871.37,0.00035068,2]
[315031589,1708737041820,-154.20563152,0.00035245,7]
[315031590,1708737041831,-638.0,0.0003529,2]
[315031591,1708737041842,-1126.02,0.000353,3]
[315031592,1708737041853,-1126.02,0.000353,3]
[315031593,1708737041863,-1126.02,0.000353,3]
[315031594,1708737041873,-1126.02,0.000353,3]
[315031595,1708737041882,-1126.02,0.000353,3]
[315031596,1708737041891,-1126.02,0.000353,3]
[315031597,1708737041902,-1126.02,0.000353,3]
[315031598,1708737041911,-1126.02,0.000353,3]
[315031599,1708737041921,-1126.02,0.000353,3]
[315031600,1708737041931,-1126.02,0.000353,3]
[315031601,1708737041941,-1126.02,0.000353,3]
[315031602,1708737041950,-1126.02,0.000353,3]
[315031603,1708737041959,-1126.02,0.000353,3]
[315031604,1708737041969,-1126.02,0.000353,3]
[315031605,1708737041978,-1126.02,0.000353,3]
[315031606,1708737041988,-1126.02,0.000353,3]
[315031607,1708737041998,-1126.02,0.000353,3]
[315031608,1708737042007,-1126.02,0.000353,3]
[315031609,1708737042017,-1126.02,0.000353,3]
[315031610,1708737042026,-1126.02,0.000353,3]
[315031611,1708737042035,-150.0,0.00035328,2]
[315031612,1708737042045,-2919.363933,0.00035342,2]
[315031613,1708737042054,-3449.931709,0.00035342,2]
[315031614,1708737042063,-27733.957367,0.00035342,2]
[315031615,1708737042073,-9996.618154,0.00035342,2]
[315031616,1708737042083,-148481.669253,0.00035342,2]
[315031617,1708737042093,-5061.685427,0.00035342,2]
[315031618,1708737042102,-871.37,0.00035342,2]
[315031619,1708737042111,-151.0,0.00035386,4]
[315031620,1708737042120,-5045.55795348,0.00035432,2]
[315031621,1708737042130,-150.0,0.00035472,2]
[315031622,1708737042140,-3336.415924,0.00035589,2]
[315031623,1708737042150,-3942.779097,0.00035589,2]
[315031624,1708737042159,-31695.951276,0.00035589,2]
[315031625,1708737042168,-11424.706461,0.00035589,2]
[315031626,1708737042178,-169693.33629,0.00035589,2]
[315031627,1708737042189,-5784.783345,0.00035589,2]
[315031628,1708737042198,-1233.00739774,0.000356,2]
[315031629,1708737042208,-2250.0,0.000356,2]
[315031630,1708737042218,-8000.0,0.000356,2]
[315031631,1708737042228,-871.37,0.00035616,2]
[315031632,1708737042238,-2926.03,0.00035616,2]
[315031633,1708737042248,-1422.1,0.00035616,2]
[315031635,1708737042257,-166.71087494,0.00035617,2]
[315031636,1708737042268,-2852.78914215,0.000357,2]
[315031637,1708737042280,-2700.05,0.000357,7]
[315031638,1708737042289,-3416.47,0.000357,7]
[315031639,1708737042300,-3868.85,0.000357,7]
[315031640,1708737042311,-151.0,0.000357,7]
[315031641,1708737042322,-151.0,0.000357,7]
[315031642,1708737042332,-151.75670967,0.00035734,2]
[315031643,1708737042344,-8323.21,0.00035798,2]
[315031644,1708737042354,-1008.4955,0.00035799,2]
[315031645,1708737042364,-160.49481861,0.00035831,7]
[315031646,1708737042374,-247.12842139,0.0003587,2]
[315031647,1708737042383,-871.37,0.0003589,2]
[315031648,1708737042393,-10053.91627351,0.000359,2]
[315031649,1708737042402,-150.0,0.00035905,2]
[315031650,1708737042412,-86680.72921956,0.00036,2]
[315031651,1708737042421,-2688.96629497,0.00036,2]
[315031652,1708737042430,-4995.28,0.00036,2]
[315031653,1708737042440,-161.65,0.00036008,2]
[315031654,1708737042450,-154.20563152,0.00036036,7]
[315031655,1708737042459,-1241.82,0.00036058,2]
[315031656,1708737042468,-151.0,0.00036108,2]
[315031657,1708737042478,-871.37,0.00036164,2]
[315031658,1708737042488,-1109.25762475,0.000362,2]
[315031659,1708737042498,-373.03002978,0.000362,2]
[315031660,1708737042507,-2116.86101888,0.00036301,30]
[315031661,1708737042517,-150.0,0.00036337,2]
[315031662,1708737042527,-168.67,0.00036357,2]
[315031663,1708737042537,-871.37,0.00036438,2]
[315031664,1708737042548,-206.48,0.00036438,2]
[315031665,1708737042557,-150.0,0.00036482,2]
[315031666,1708737042566,-150.611562,0.00036614,7]
[315031667,1708737042576,-638.0,0.0003666,7]
[315031668,1708737042586,-151.75670967,0.00036665,2]
[315031669,1708737042598,-871.37,0.00036712,2]
[315031670,1708737042608,-37616.76929009,0.00036738,2]
[315031671,1708737042618,-191.60846217,0.00036815,2]
[315031672,1708737042628,-597.69811164,0.00036815,2]
[315031673,1708737042638,-871.37,0.00036986,2]
[315031674,1708737042649,-666.0,0.00036986,2]
[315031675,1708737042658,-6469.0,0.00037,2]
[315031676,1708737042670,-5045.55795348,0.00037011,2]
[315031677,1708737042680,-150.0,0.00037059,2]
[315031678,1708737042689,-8323.21,0.00037075,2]
[315031679,1708737042699,-331.991203,0.00037185,2]
[315031680,1708737042711,-156.90607,0.00037185,2]
[315031681,1708737042721,-189.835385,0.00037185,2]
[315031682,1708737042731,-158.84317,0.00037185,2]
[315031683,1708737042740,-155.007164,0.00037185,2]
[315031684,1708737042750,-181.731711,0.00037185,2]
[315031685,1708737042759,-1126.02,0.000372,3]
[315031686,1708737042770,-1126.02,0.000372,3]
[315031687,1708737042779,-1126.02,0.000372,3]
[315031688,1708737042788,-1126.02,0.000372,3]
[315031689,1708737042798,-1126.02,0.000372,3]
[315031691,1708737042807,-1126.02,0.000372,3]
[315031693,1708737042816,-1126.02,0.000372,3]
[315031695,1708737042826,-1126.02,0.000372,3]
[315031703,1708737042882,-1126.02,0.000372,3]
[315031707,1708737042891,-1126.02,0.000372,3]
[315031709,1708737042901,-1126.02,0.000372,3]
[315031711,1708737042910,-1126.02,0.000372,3]
[315031712,1708737042919,-1126.02,0.000372,3]
[315031713,1708737042929,-1126.02,0.000372,3]
[315031714,1708737042940,-1126.02,0.000372,3]
[315031715,1708737042949,-1126.02,0.000372,3]
[315031716,1708737042959,-1126.02,0.000372,3]
[315031717,1708737042968,-1126.02,0.000372,3]
[315031718,1708737042978,-1126.02,0.000372,3]
[315031719,1708737042988,-1126.02,0.000372,3]
[315031720,1708737042998,-150.0,0.00037203,2]
[315031721,1708737043007,-871.37,0.0003726,2]
[315031722,1708737043017,-154.20563152,0.00037294,7]
[315031723,1708737043026,-3416.47,0.000373,7]
[315031724,1708737043035,-3868.85,0.000373,7]
[315031725,1708737043044,-150.611562,0.00037333,7]
[315031726,1708737043054,-154.20563152,0.00037497,7]
[315031727,1708737043063,-5009.6,0.0003753,2]
[315031728,1708737043072,-871.37,0.00037534,2]
[315031729,1708737043081,-151.75670967,0.00037596,2]
[315031730,1708737043090,-150.0,0.00037635,2]
[315031731,1708737043101,-331.991203,0.0003765,2]
[315031732,1708737043112,-189.835385,0.0003765,2]
[315031733,1708737043122,-155.007164,0.0003765,2]
[315031734,1708737043131,-158.44336474,0.00037662,7]
[315031735,1708737043140,-180.0,0.00037671,2]
[315031736,1708737043151,-163.11299117,0.000378,2]
[315031737,1708737043160,-871.37,0.00037808,2]
[315031738,1708737043171,-451.39229928,0.000379,2]
[315031739,1708737043180,-692653.166414,0.000379,3]
[315031740,1708737043190,-937.19670254,0.00038,2]
[315031741,1708737043200,-166.50369129,0.00038,2]
[315031742,1708737043209,-638.0,0.0003803,7]
[315031743,1708737043218,-150.0,0.00038068,2]
[315031744,1708737043227,-871.37,0.00038082,2]
[315031745,1708737043237,-331.991203,0.00038115,2]
[315031746,1708737043247,-189.835385,0.00038115,2]
[315031747,1708737043258,-155.007164,0.00038115,2]
[315031748,1708737043268,-150.0,0.00038212,2]
[315031749,1708737043278,-1000.0,0.00038299,2]
[315031750,1708737043289,-5800.0,0.00038299,2]
[315031751,1708737043299,-1241.82,0.00038322,2]
[315031752,1708737043308,-8323.21,0.00038352,2]
[315031753,1708737043317,-871.37,0.00038356,2]
[315031754,1708737043327,-3272.0,0.00038356,15]
[315031755,1708737043337,-915.8571402,0.0003836,7]
[315031756,1708737043349,-915.8571402,0.0003836,7]
[315031757,1708737043360,-915.8571402,0.0003836,7]
[315031758,1708737043369,-915.8571402,0.0003836,7]
[315031759,1708737043378,-915.8571402,0.0003836,7]
[315031760,1708737043387,-915.8571402,0.0003836,7]
[315031761,1708737043397,-915.8571402,0.0003836,7]
[315031762,1708737043406,-915.8571402,0.0003836,7]
[315031763,1708737043416,-915.8571402,0.0003836,7]
[315031764,1708737043425,-915.8571402,0.0003836,7]
[315031765,1708737043434,-915.8571402,0.0003836,7]
[315031766,1708737043443,-915.8571402,0.0003836,7]
[315031767,1708737043453,-915.8571402,0.0003836,7]
[315031768,1708737043462,-915.8571402,0.0003836,7]
[315031769,1708737043472,-915.8571402,0.0003836,7]
[315031770,1708737043481,-915.8571402,0.0003836,7]
[315031771,1708737043491,-915.8571402,0.0003836,7]
[315031772,1708737043500,-915.8571402,0.0003836,7]
[315031773,1708737043510,-915.8571402,0.0003836,7]
[315031774,1708737043519,-915.85,0.0003836,7]
[315031775,1708737043528,-367.98047708,0.0003836,7]
[315031776,1708737043537,-367.98047708,0.0003836,7]
[315031777,1708737043546,-367.98047708,0.0003836,7]
[315031778,1708737043556,-367.98047708,0.0003836,7]
[315031779,1708737043565,-367.98047708,0.0003836,7]
[315031780,1708737043575,-367.98047708,0.0003836,7]
[315031781,1708737043585,-367.98047708,0.0003836,7]
[315031782,1708737043595,-367.98047708,0.0003836,7]
[315031783,1708737043604,-367.98047708,0.0003836,7]
[315031784,1708737043613,-367.98047708,0.0003836,7]
[315031785,1708737043623,-367.98047708,0.0003836,7]
[315031786,1708737043632,-367.98047708,0.0003836,7]
[315031787,1708737043641,-367.98047708,0.0003836,7]
[315031788,1708737043650,-367.98047708,0.0003836,7]
[315031789,1708737043660,-367.98047708,0.0003836,7]
[315031790,1708737043669,-367.98047708,0.0003836,7]
[315031791,1708737043678,-367.98047708,0.0003836,7]
[315031792,1708737043688,-367.98047708,0.0003836,7]
[315031793,1708737043697,-367.98047708,0.0003836,7]
[315031794,1708737043706,-367.98,0.0003836,7]
[315031795,1708737043716,-576.21463369,0.0003836,7]
[315031796,1708737043726,-576.21463369,0.0003836,7]
[315031797,1708737043737,-576.21463369,0.0003836,7]
[315031798,1708737043746,-576.21463369,0.0003836,7]
[315031799,1708737043756,-576.21463369,0.0003836,7]
[315031800,1708737043765,-576.21463369,0.0003836,7]
[315031801,1708737043774,-576.21463369,0.0003836,7]
[315031802,1708737043783,-576.21463369,0.0003836,7]
[315031803,1708737043792,-576.21463369,0.0003836,7]
[315031804,1708737043801,-576.21463369,0.0003836,7]
[315031805,1708737043810,-576.21463369,0.0003836,7]
[315031806,1708737043819,-576.21463369,0.0003836,7]
[315031807,1708737043829,-576.21463369,0.0003836,7]
[315031808,1708737043838,-576.21463369,0.0003836,7]
[315031809,1708737043849,-576.21463369,0.0003836,7]
[315031810,1708737043857,-576.21463369,0.0003836,7]
[315031811,1708737043866,-576.21463369,0.0003836,7]
[315031812,1708737043875,-576.21463369,0.0003836,7]
[315031813,1708737043884,-576.21463369,0.0003836,7]
[315031814,1708737043892,-576.21,0.0003836,7]
[315031815,1708737043901,-231.13756539,0.0003836,7]
[315031816,1708737043910,-231.13756539,0.0003836,7]
[315031817,1708737043919,-231.13756539,0.0003836,7]
[315031818,1708737043928,-231.13756539,0.0003836,7]
[315031819,1708737043938,-231.13756539,0.0003836,7]
[315031820,1708737043947,-231.13756539,0.0003836,7]
[315031821,1708737043956,-231.13756539,0.0003836,7]
[315031822,1708737043967,-231.13756539,0.0003836,7]
[315031823,1708737043977,-231.13756539,0.0003836,7]
[315031824,1708737043986,-231.13756539,0.0003836,7]
[315031825,1708737043996,-231.13756539,0.0003836,7]
[315031826,1708737044006,-231.13756539,0.0003836,7]
[315031827,1708737044017,-231.13756539,0.0003836,7]
[315031828,1708737044027,-231.13756539,0.0003836,7]
[315031829,1708737044037,-231.13756539,0.0003836,7]
[315031830,1708737044046,-231.13756539,0.0003836,7]
[315031831,1708737044055,-231.13756539,0.0003836,7]
[315031832,1708737044064,-231.13756539,0.0003836,7]
[315031833,1708737044073,-231.13756539,0.0003836,7]
[315031834,1708737044082,-231.13,0.0003836,7]
[315031835,1708737044092,-595.25358926,0.0003836,7]
[315031836,1708737044102,-595.25358926,0.0003836,7]
[315031837,1708737044112,-595.25358926,0.0003836,7]
[315031838,1708737044120,-595.25358926,0.0003836,7]
[315031839,1708737044129,-595.25358926,0.0003836,7]
[315031840,1708737044139,-595.25358926,0.0003836,7]
[315031841,1708737044148,-595.25358926,0.0003836,7]
[315031842,1708737044157,-595.25358926,0.0003836,7]
[315031843,1708737044166,-595.25358926,0.0003836,7]
[315031844,1708737044174,-595.25358926,0.0003836,7]
[315031845,1708737044183,-595.25358926,0.0003836,7]
[315031846,1708737044194,-595.25358926,0.0003836,7]
[315031847,1708737044203,-595.25358926,0.0003836,7]
[315031848,1708737044213,-595.25358926,0.0003836,7]
[315031849,1708737044222,-595.25358926,0.0003836,7]
[315031850,1708737044231,-595.25358926,0.0003836,7]
[315031851,1708737044241,-595.25358926,0.0003836,7]
[315031852,1708737044250,-595.25358926,0.0003836,7]
[315031853,1708737044259,-595.25358926,0.0003836,7]
[315031854,1708737044268,-595.25,0.0003836,7]
[315031855,1708737044278,-3416.47,0.000384,7]
[315031856,1708737044287,-3868.85,0.000384,7]
[315031857,1708737044297,-6469.33730538,0.000384,2]
[315031858,1708737044306,-2681.38809234,0.00038403,10]
[315031859,1708737044315,-2681.38809228,0.00038403,10]
[315031860,1708737044325,-2681.38809228,0.00038403,10]
[315031861,1708737044335,-2681.38809228,0.00038403,10]
[315031862,1708737044345,-151.75670967,0.00038527,2]
[315031863,1708737044355,-58000.0,0.00038541,3]
[315031864,1708737044366,-331.991203,0.0003858,2]
[315031865,1708737044377,-189.835385,0.0003858,2]
[315031866,1708737044387,-155.007164,0.0003858,2]
[315031867,1708737044396,-871.37,0.0003863,2]
[315031868,1708737044405,-7752.439,0.0003865,25]
[315031869,1708737044415,-150.611562,0.00038705,7]
[315031870,1708737044424,-150.0,0.00038789,2]
[315031871,1708737044433,-154.20563152,0.00038888,7]
[315031872,1708737044443,-871.37,0.00038904,2]
[315031873,1708737044452,-150.0,0.00038933,2]
[315031874,1708737044463,-744.82,0.0003899,10]
[315031875,1708737044473,-1126.02,0.00039,3]
[315031876,1708737044482,-1126.02,0.00039,3]
[315031877,1708737044492,-1126.02,0.00039,3]
[315031878,1708737044502,-1126.02,0.00039,3]
[315031879,1708737044512,-1126.02,0.00039,3]
[315031880,1708737044523,-1126.02,0.00039,3]
[315031881,1708737044534,-1126.02,0.00039,3]
[315031882,1708737044544,-1126.02,0.00039,3]
[315031883,1708737044555,-1126.02,0.00039,3]
[315031884,1708737044566,-1126.02,0.00039,3]
[315031885,1708737044577,-1126.02,0.00039,3]
[315031886,1708737044587,-1126.02,0.00039,3]
[315031887,1708737044597,-1126.02,0.00039,3]
[315031888,1708737044607,-1126.02,0.00039,3]
[315031889,1708737044618,-1126.02,0.00039,3]
[315031890,1708737044628,-1126.02,0.00039,3]
[315031891,1708737044637,-1126.02,0.00039,3]
[315031892,1708737044647,-1126.02,0.00039,3]
[315031893,1708737044657,-1126.02,0.00039,3]
[315031894,1708737044667,-1126.02,0.00039,3]
[315031895,1708737044677,-157.51738774,0.00039016,7]
[315031896,1708737044687,-2681.38809228,0.00039042,11]
[315031897,1708737044697,-331.991203,0.00039045,2]
[315031898,1708737044707,-189.835385,0.00039045,2]
[315031899,1708737044716,-155.007164,0.00039045,2]
[315031900,1708737044726,-157.51738774,0.00039085,7]
[315031901,1708737044736,-305.54,0.000391,2]
[315031902,1708737044746,-161.65,0.00039139,2]
[315031903,1708737044755,-151.0,0.00039154,14]
[315031904,1708737044765,-278.87872,0.00039154,14]
[315031905,1708737044774,-871.53,0.00039178,2]
[315031906,1708737044783,-1000.0,0.0003926,2]
[315031907,1708737044793,-477.04,0.0003929,10]
[315031908,1708737044802,-465732.91752105,0.000393,2]
[315031909,1708737044813,-151.0,0.000393,14]
[315031910,1708737044822,-151.0,0.000393,14]
[315031911,1708737044840,-151.0,0.000393,14]
[315031912,1708737044866,-151.0,0.000393,14]
[315031913,1708737044891,-151.0,0.000393,14]
[315031914,1708737044918,-151.0,0.000393,2]
[315031915,1708737044950,-217.583966,0.000393,14]
[315031916,1708737044983,-217.583966,0.000393,14]
[315031917,1708737044993,-151.0,0.000393,14]
[315031918,1708737045002,-151.0,0.000393,14]
[315031919,1708737045012,-151.0,0.000393,14]
[315031920,1708737045022,-151.0,0.000393,14]
[315031921,1708737045032,-151.0,0.000393,14]
[315031922,1708737045042,-151.0,0.000393,14]
[315031923,1708737045052,-156.350324,0.000393,14]